Cogmind - Beta 14 @@@ ROGUE MODE // 2024.12.31 @ 13:34:26 Player: jumpy Result: Destroyed by as-31775 with Assembled Heavy Rifle Performance ------------- Evolutions (0) 0 Regions Visited (2) 400 Robots Destroyed (3) 15 Value Destroyed (30) 30 Prototype IDs (0) 0 Alien Tech Used (0) 0 Bonus (0) 0 TOTAL SCORE: 445 Bonus ------- None Cogmind --------- Core Integrity 0/250 Matter 300/300 Energy 125/125 System Corruption 0% Temperature Cool (0) Movement Flying (120) Ox1 Location -10/Mines Parts ------- > --- POWER (1) -------- Light Ion Engine > --- PROPULSION (2) --- Flight Unit > --- UTILITY (2) ------ (None) > --- WEAPON (2) ------- Light Assault Rifle Grenade Launcher > --- INVENTORY (5) ---- Light Assault Rifle Peak State ------------ > --- POWER ------------ Light Ion Engine > --- PROPULSION ------- Wheel Compact Wheel > --- UTILITY ---------- Small Storage Unit > --- WEAPON ----------- Medium Laser Light Assault Rifle > --- INVENTORY -------- Light Assault Rifle [Rating: 6] Favorites ----------- Power Light Ion Engine Engine Light Ion Engine Propulsion Flight Unit Wheel Wheel Flight Unit Flight Unit Utility Small Storage Unit Storage Small Storage Unit Weapon Light Assault Rifle Energy Gun Medium Laser Ballistic Gun Light Assault Rifle Launcher Grenade Launcher Build | -11 -10 -10 ------- Run | Yrd Mat Min Slots Evolved . | . . . Power . | . . . Propulsion . | . . . Utility . | . . . Weapon . | . . . Parts Attached 11 | 6 . 5 Power 2 | 1 . 1 Engine 2 | 1 . 1 Core . | . . . Reactor . | . . . Propulsion 4 | 2 . 2 Treads . | . . . Leg . | . . . Wheel 2 | 2 . . Hover . | . . . Flight 2 | . . 2 Utility 1 | 1 . . Device . | . . . Storage 1 | 1 . . Processor . | . . . Hackware . | . . . Protection . | . . . Artifact . | . . . Weapon 4 | 2 . 2 Energy Gun 1 | 1 . . Energy Cannon . | . . . Ballistic Gun 2 | 1 . 1 Ballistic Cannon . | . . . Launcher 1 | . . 1 Special Weapon . | . . . Impact Weapon . | . . . Slashing Weapon . | . . . Piercing Weapon . | . . . Special Melee Weapon . | . . . Unidentified Prototypes . | . . . Parts Lost 1 | . . 1 Power . | . . . Propulsion 1 | . . 1 Utility . | . . . Weapon . | . . . Highest Loss Streak 1 | . . 1 To Critical Strikes . | . . . Average Slot Usage (%) 74 | . 85 71 Engine 14 | . 14 14 Wheel 8 | . 28 2 Flight 18 | . . 24 Storage 4 | . 14 1 Energy Gun 4 | . 14 1 Ballistic Gun 17 | . 14 19 Launcher 5 | . . 7 Peak Build Rating 6 | 6 6 6 Average Rating 5 | 3 6 5 On Entrance 4 | . 6 6 Naked Turns . | . . . Heaviest Build 11 | 11 11 11 Greatest Support 26 | 26 26 26 Greatest Overweight (x) 1 | . . 1 Average Overweight (x) . | . . . Largest Inventory Capacity 8 | 8 8 8 Average Capacity 6 | 6 8 5 Most Carried 5 | 2 3 5 Average Carried 1 | . 2 . Final Capacity 8 | 8 8 5 Final Carried 3 | 1 3 1 Class Distribution -------------------- 100% | Mutant Dominant Class ---------------- Mutant | -10/Materials Mutant | -10/Mines Resources | -11 -10 -10 ----------- Run | Yrd Mat Min Matter Collected 327 | 194 . 133 Remotely . | . . . Salvage Created 64 | . . 64 Parts 4 | . . 4 Haulers Intercepted . | . . . Recyclers Shooed . | . . . Parts Field Recycled . | . . . Retrieved Matter . | . . . Parts Self-Destructed . | . . . Prevented . | . . . Kills | -11 -10 -10 ------- Run | Yrd Mat Min Combat Hostiles Destroyed 6 | . . 6 Guns 5 | . . 5 AOE 1 | . . 1 Classes Destroyed 2 | . . 2 Swarmer 3 | . . 3 Assembled 3 | . . 3 Best Kill Streak 3 | . . 3 Combat Bots Only 3 | . . 3 Max Kills in Single Turn 2 | . . 2 Gunslinging . | . . . Exploded 1 | . . 1 Melee . | . . . Uniques/NPCs Destroyed . | . . . Combat | -11 -10 -10 -------- Run | Yrd Mat Min Hostile Shots Fired 60 | . 5 55 Missed 24 | . 3 21 Damage Taken 495 | . 31 464 Core 252 | . 13 239 Absorbed by Shields . | . . . Core Remaining (%) 100 | 100 . . Volleys Fired 9 | . 1 8 Largest 2 | . 2 2 Hottest 70 | . 70 70 Shots Fired 16 | . 2 14 Gun 15 | . 2 13 Cannon . | . . . Launcher 1 | . . 1 Special . | . . . Kinetic 9 | . 1 8 Thermal 6 | . 1 5 Explosive 1 | . . 1 Electromagnetic . | . . . Robot Hit Streak 6 | . . 6 Robot Miss Streak 4 | . 2 4 Penetration Max . | . . . Secondary Targets 2 | . . 2 Max Gunslinging Chain 1 | . . 1 Shots Hit Robots 8 | . . 8 Core Hits 8 | . . 8 Critical Kills . | . . . Critical Parts Destroyed . | . . . Critical Strikes 1 | . . 1 Burn 1 | . . 1 Melee Attacks . | . . . Impact . | . . . Slashing . | . . . Piercing . | . . . Sneak Attacks . | . . . Combat Hostiles . | . . . Follow-up Attacks . | . . . Damage Inflicted 138 | . . 138 Guns 76 | . . 76 Cannons . | . . . Explosions 62 | . . 62 Melee . | . . . Ramming . | . . . Kinetic 39 | . . 39 Thermal 37 | . . 37 Explosive 62 | . . 62 Electromagnetic . | . . . Impact . | . . . Slashing . | . . . Piercing . | . . . Highest Corruption . | . . . Average Corruption . | . . . Corruption Purged . | . . . Corruption Blocked . | . . . Overload Shots . | . . . Overflow Damage . | . . . Projectiles . | . . . Explosions . | . . . Melee . | . . . Knockbacks . | . . . Impact . | . . . Kinetic . | . . . Secondary . | . . . Self-Inflicted Damage . | . . . Shots . | . . . Rammed . | . . . Targets Rammed . | . . . Kicked . | . . . Crushed . | . . . Highest Temperature 70 | . 30 70 Average Temperature 29 | . 18 30 Received Heat Transfer 18 | . 18 . Siege Activations . | . . . Robots Corrupted . | . . . Combat Hostiles . | . . . Parts Fried . | . . . Impact Corruptions . | . . . Robots Melted . | . . . Combat Hostiles . | . . . Parts Melted 1 | . . 1 Heat Transferred 185 | . . 185 Parts Sabotaged . | . . . Parts Stolen . | . . . Parts Stripped . | . . . Power Chain Reactions . | . . . Alert | -11 -10 -10 ------- Run | Yrd Mat Min Peak Influence 152 | . 45 152 Initial 17 | . . 17 Average 69 | . 11 106 Maximum Alert Level . | . . . Low Security (%) 100 | 100 100 100 Level 1 . | . . . Level 2 . | . . . Level 3 . | . . . Level 4 . | . . . Level 5 . | . . . High Security . | . . . Max Security . | . . . Squads Dispatched 1 | . 1 . Investigation . | . . . Extermination . | . . . Reinforcement 1 | . 1 . Assault . | . . . Garrison . | . . . Intercept . | . . . Searches Triggered . | . . . Construction Impeded . | . . . Haulers Reinforced . | . . . Active Scanning Responses . | . . . Cargo Convoy Interrupts . | . . . Stealth | -11 -10 -10 --------- Run | Yrd Mat Min Distress Signals . | . . . Communications Jammed . | . . . Distress Signals . | . . . Times Spotted 20 | . 6 14 Peak Tracking Total 13 | . 4 13 Tactical Retreats 2 | . 1 1 Traps | -11 -10 -10 ------- Run | Yrd Mat Min Traps Triggered . | . . . Indirectly . | . . . Trap Hack Attempts . | . . . Triggered . | . . . Disarmed . | . . . Reprogrammed . | . . . Reused . | . . . Traps Extracted . | . . . Installed . | . . . Triggered . | . . . Machines | -11 -10 -10 ---------- Run | Yrd Mat Min Machines Disabled . | . . . Max in Single Turn . | . . . Machines Repaired . | . . . Machines Dismantled . | . . . Machines Sabotaged . | . . . Overloaded Fab Kills . | . . . Hacking | -11 -10 -10 --------- Run | Yrd Mat Min Machines Accessed . | . . . Terminals . | . . . Fabricators . | . . . Repair Stations . | . . . Recycling Units . | . . . Scanalyzers . | . . . Garrison Access . | . . . Total Hacks . | . . . Successful . | . . . Failed . | . . . Catastrophic . | . . . Database Lockouts . | . . . Manual 1 | . 1 . Terminals . | . . . Fabricators . | . . . Repair Stations . | . . . Recycling Units . | . . . Scanalyzers . | . . . Garrison Access . | . . . Terminal Hacks . | . . . Fabricator Hacks . | . . . Repair Station Hacks . | . . . Recycling Unit Hacks . | . . . Scanalyzer . | . . . Garrison Access Hacks . | . . . Unauthorized Hacks . | . . . Terminals . | . . . Fabricators . | . . . Repair Stations . | . . . Recycling Units . | . . . Scanalyzers . | . . . Garrison Access . | . . . Data Cores Recovered . | . . . Used . | . . . Hacking Detections 1 | . 1 . Full Trace Events . | . . . Feedback Events . | . . . Feedback Blocked . | . . . Robot Schematics Acquired . | . . . Robots Built . | . . . Authchips . | . . . Time . | . . . Total Robot Build Rating . | . . . Part Schematics Acquired . | . . . Parts Built . | . . . Authchips . | . . . Time . | . . . Total Part Build Rating . | . . . Parts Repaired . | . . . Time . | . . . Parts Recycled . | . . . Recycled Matter . | . . . Retrieved Matter . | . . . Retrieved Components . | . . . Parts Scanalyzed . | . . . Part Schematics Acquired . | . . . Parts Damaged . | . . . Bothacking | -11 -10 -10 ------------ Run | Yrd Mat Min Used RIF Installer . | . . . Robots Hacked . | . . . Non-combat . | . . . Combat . | . . . Robot Hacks Applied . | . . . Relay Couplers Released . | . . . Fabnet Peak Effective % . | . . . Robots Rewired . | . . . Allies Hacked . | . . . Hacks Repelled . | . . . Allies | -11 -10 -10 -------- Run | Yrd Mat Min Total Allies . | . . . Largest Group . | . . . Highest-Rated Group . | . . . Highest-Rated Ally . | . . . Total Orders . | . . . Ally Attacks . | . . . Total Damage . | . . . Kills . | . . . Allies Corrupted . | . . . Allies Melted . | . . . Intel | -11 -10 -10 ------- Run | Yrd Mat Min Robot Analysis Total . | . . . Derelict Logs Recovered 1 | . . 1 Drone Launches . | . . . Drone Recoveries . | . . . Exploration | -11 -10 -10 ------------- Run | Yrd Mat Min Turns Passed 358 | 60 73 225 Spaces Moved 588 | 62 76 450 Core 21 | 21 . . Treads . | . . . Legs . | . . . Wheels 122 | 41 76 5 Hover . | . . . Flight 445 | . . 445 Fastest Speed 37 | 50 90 37 Average Speed 49 | 76 90 39 Slowest Speed 120 | 90 90 120 Overloaded Moves . | . . . Propulsion Burnouts . | . . . Robots Hopped 11 | . . 11 Cave-ins Triggered . | . . . Exploration Rate (%) 36 | 4 25 79 Regions Visited 2 Branch Regions 1 Pre-discovered Areas . | . . . Known Exits Taken . | . . . Unknown Exits Taken 2 | 1 1 . Scrap Searched . | . . . Spaces Dug . | . . . Terrain Destroyed 5 | . . 5 Melee . | . . . Projectile . | . . . AOE 5 | . . 5 Terrain Rammed . | . . . Walls Destroyed . | . . . Machines Disabled . | . . . Actions | -11 -10 -10 --------- Run | Yrd Mat Min Total 625 | 72 78 475 Wait 12 | . . 12 Move 565 | 61 75 429 Hop 10 | . . 10 Pick Up 10 | 4 2 4 Fast Attach 4 | 4 . . Attach 2 | 2 . . Detach . | . . . Swap 5 | . . 5 Drop 8 | 1 . 7 Fire 9 | . 1 8 Melee . | . . . Ram . | . . . Kick . | . . . Crush . | . . . Escape Stasis . | . . . Rewire . | . . . Trap . | . . . Miscellaneous . | . . . Route ------- -11/Scrapyard -10/Materials -10/Mines (discovered 1 exit: Mat) History --------- Turn | Location | Event 4 | -11/Scrapyard | Discovered new exit (range 16) 61 | -11/Scrapyard | Entered Materials 128 | -10/Materials | Discovered new exit (range 7) 134 | -10/Materials | Entered Mines 185 | -10/Mines | Assembled infested the area 246 | -10/Mines | YI-UF0 nonchalantly dropped a Grenade Launcher on the ground 259 | -10/Mines | Identified exit to Materials 308 | -10/Mines | Build established: Mutant 346 | -10/Mines | Core integrity fell below 50% 356 | -10/Mines | Core integrity fell below 20% 359 | -10/Mines | Destroyed by as-31775 with Assembled Heavy Rifle Last Messages --------------- 00160_ Acquired Lgt. Ion Engine. 00162_ Dropped Lgt. Ion Engine. 00163_ Dropped Com. Wheel. 00165_ Dropped Sml. Storage Unit. 00165_ Dropped Med. Laser. 00185_ ALERT: Infestation in the mines, dispatching Demolisher response squad. 00192_ K-01 Serf collects debris. [Achievement: Slippery One] 00221_ K-01 Serf collects debris. 00246_ YI-UF0 nonchalantly drops a Grenade Launcher on the ground. 00247_ Acquired Grenade Launcher. 00259_ Acquired derelict log, extracted data. Loading 1 Mines exit... 00313_ Acquired 77 matter. 00314_ Acquired 26 matter. 00331_ as-28999 destroyed. 00336_ Acquired 30 matter. 00343_ as-43877 destroyed. 00347_ Flight Unit destroyed. Map ----- +----------------------------------------------------+ | ?????????????????????????????????????????????????? | | ???#######???????????????????????????????????????? | | ### ##??????????????????????????????????????? | | # #??????????????????????????????????????? | | #???????????????????????????????###?????? | | """ #???????????????????????????????## ##???? | | """ #????????????????????????????????# #???? | | """ #????????????????????????????????#$ ##??? | | #?????????????????????????????????# ##?? | | #???????????????????????###????????# ### | | ##???????????????????????# ????????## # | | ## ##????????????????????????# ????????## | | #####?????????????????????????# ?????#### | | #?????????????????????????????# ????## | | #???????????###???????????????#%!???## | | #??????????## ##??????????#%##*!#### % | | ########???# ##????????#=%*%| ## #### | | #???# ##????????????# ##????# | | ####### #????# ######???????# ##%! #??????# | | ??????# #?????# ## ##??????# ##! ##???????# | | ??????# #??????# ##?????#%## ##????????? | | ??????# #???????# ##????#!## ##???????## | | ####### ######?## ##???# ## = ##?????## | | ### #???# ##= ! ##???## | | ##### # | ##### | | ###### #### t @ a ** | | ?????# #??# ### ### a a ! / | | ?????# #### ###?####?##### ###### ###### | | ?????# ##????????????# #????#####????# | | ?????###### #?????????????# #?????????????## | | ?????????## ##?????????????# ####???????????## | | ?????????# #?????????????## ##???????????# | | ????????## ##?????????????# #???????????# | | ???????## ##?????????????## [ #???????????# | | ???????# ##??????????????# % = ##???????????# | | ??????## #???????????????# =%%##????????????## | | ????### #???????????????## [ #??????????????## | | ???## #??????###???????# #???????????????# | | ???# #?????## ######### #???????????????# | | ???# #?????# ## ### #??????????###??# | | ???## ##????# #####??????????# ##?# | | ????## ####?## #??????????????# #?? | | ?????### ##?#### ## #??????????????# #?? | | ???????## #????###### ##????????????## ##? | | ????????## #######??## ##????????#### ## | | ?????????## #### ##??????## # | | ??????????## ###### ######## # | | ???????????## #????# * | | ??????????### #????###### !% ! | | ??????????# #?????????### ## ###*%% | +----------------------------------------------------+ Best States ------------- Heat Dissipation 25 Energy Generation 10 Energy Capacity 125 Matter Stores 300 Matter Capacity 300 Sight Range 16 Terrain Scan Density 10 Evasion (%) 62 Item Schematics ----------------- None Robot Schematics ------------------ None Fabricated ------------ Nothing Alien Tech Used ----------------- None Achievements -------------- Slippery One Challenges ------------ None Game ------ Seed ExplosiveFocalSuite Manual? 0 Play Time 00:06:45 Cumulative 2.9 hours Start 2024.12.31 @ 13:19:03 End 2024.12.31 @ 13:34:26 Sessions 1 Manual Loads 0 Difficulty Rogue Special Mode None Game No. 8 Rogue 8 Adventurer 0 Explorer 0 Win Type - Total 0 Types 0/0/0/0/0/0/0/0/0 Lore% 2 Gallery% 7 Achievement% 10 Wizard Run 0 Options --------- Layout 0 ASCII 0 Keyboard 0 Movement Numpad Keybinds 0 Fullscreen 2 Font 18/SmallcapsGlow Map View 76x50 Zoom Use 0% Tactical HUD 1 Map Filters NONE Filters NONE Steam 1 RUN: b8dc249b-397e-4eac-8ff2-0f92a99a3025